[Event "*** Titled Tuesday Blitz"]
[Site "Chess.com"]
[Date "2018.07.03"]
[Round "3"]
[White "maheswaran26"]
[Black "cool4chess"]
[Result "0-1"]
[WhiteElo "1952"]
[BlackElo "2053"]
[TimeControl "180+2"]
[EndTime "13:34:39 PDT"]
[Termination "cool4chess won by checkmate"]

1. d4 {[%clk 0:02:58.5]} 1... d5 {[%clk 0:03:00.4]} 2. c4 {[%clk 0:02:58.8]}
2... c6 {[%clk 0:03:01.5]} 3. Nf3 {[%clk 0:02:59.5]} 3... Nf6 {[%clk 0:03:02.4]}
4. Nc3 {[%clk 0:02:59]} 4... e6 {[%clk 0:03:03.7]} 5. e3 {[%clk 0:02:59.2]} 5...
Nbd7 {[%clk 0:03:03.3]} 6. Qc2 {[%clk 0:02:59.6]} 6... Bd6 {[%clk 0:03:03.5]} 7.
g4 {[%clk 0:02:59.9]} 7... h6 {[%clk 0:03:03.3]} 8. Bd2 {[%clk 0:02:55.8]} 8...
e5 {[%clk 0:02:23.2]} 9. cxd5 {[%clk 0:02:46]} 9... cxd5 {[%clk 0:02:25.1]} 10.
Nb5 {[%clk 0:02:01]} 10... Bb8 {[%clk 0:02:24.1]} 11. Rc1 {[%clk 0:01:50.2]}
11... e4 {[%clk 0:02:23.9]} 12. Qxc8 {[%clk 0:01:48.6]} 12... exf3 {[%clk
0:02:20.3]} 13. Qxb7 {[%clk 0:01:48.5]} 13... Nb6 {[%clk 0:02:09.4]} 14. Ba5
{[%clk 0:01:32.5]} 14... Ne4 {[%clk 0:02:04.8]} 15. Qxa8 {[%clk 0:01:15.2]}
15... O-O {[%clk 0:02:00.4]} 16. Bxb6 {[%clk 0:01:01.5]} 16... Qxb6 {[%clk
0:01:55.1]} 17. Qxd5 {[%clk 0:00:59.7]} 17... Re8 {[%clk 0:01:38.3]} 18. Bc4
{[%clk 0:00:55.5]} 18... Qf6 {[%clk 0:01:33.4]} 19. Bd3 {[%clk 0:00:46.8]} 19...
Nxf2 {[%clk 0:01:30.8]} 20. Kxf2 {[%clk 0:00:28.6]} 20... Qh4+ {[%clk
0:01:28.6]} 21. Kf1 {[%clk 0:00:28.2]} 21... Qh3+ {[%clk 0:01:25]} 22. Ke1
{[%clk 0:00:27.7]} 22... Qg2 {[%clk 0:01:26]} 23. Qe4 {[%clk 0:00:18.1]} 23...
Rxe4 {[%clk 0:01:24.7]} 24. Rc8+ {[%clk 0:00:18.4]} 24... Kh7 {[%clk 0:01:22.4]}
25. Bxe4+ {[%clk 0:00:19.4]} 25... g6 {[%clk 0:01:24]} 26. Bxf3 {[%clk
0:00:20.1]} 26... Qxf3 {[%clk 0:01:24.3]} 27. Rf1 {[%clk 0:00:19.5]} 27... Qxe3+
{[%clk 0:01:24.7]} 28. Kd1 {[%clk 0:00:20.4]} 28... Bf4 {[%clk 0:01:16.7]} 29.
Nc3 {[%clk 0:00:19.9]} 29... Qd2# {[%clk 0:01:17]} 0-1

[Event "*** Titled Tuesday Blitz"]
[Site "Chess.com"]
[Date "2018.07.03"]
[Round "3"]
[White "AsaHoffmann"]
[Black "tgpgoat"]
[Result "1/2-1/2"]
[WhiteElo "1990"]
[BlackElo "1973"]
[TimeControl "180+2"]
[EndTime "13:34:55 PDT"]
[Termination "Game drawn by agreement"]

1. d4 {[%clk 0:02:55]} 1... Nf6 {[%clk 0:02:59.9]} 2. Bg5 {[%clk 0:02:54.9]}
2... Ne4 {[%clk 0:03:00.5]} 3. Bf4 {[%clk 0:02:55.7]} 3... d5 {[%clk 0:02:58.1]}
4. f3 {[%clk 0:02:56.1]} 4... Nf6 {[%clk 0:02:57.6]} 5. e4 {[%clk 0:02:56.7]}
5... dxe4 {[%clk 0:02:57.7]} 6. Nc3 {[%clk 0:02:56.8]} 6... exf3 {[%clk
0:02:57.7]} 7. Nxf3 {[%clk 0:02:57.1]} 7... e6 {[%clk 0:02:59.3]} 8. Bc4 {[%clk
0:02:56.7]} 8... Bd6 {[%clk 0:02:58.5]} 9. Ne5 {[%clk 0:02:55.8]} 9... O-O
{[%clk 0:02:52.8]} 10. Qe2 {[%clk 0:02:56.1]} 10... Nc6 {[%clk 0:02:49.1]} 11.
O-O-O {[%clk 0:02:55.6]} 11... Nd7 {[%clk 0:02:43.6]} 12. Kb1 {[%clk 0:02:42.5]}
12... Qe7 {[%clk 0:02:39.8]} 13. Nxc6 {[%clk 0:02:40.7]} 13... bxc6 {[%clk
0:02:39.6]} 14. Rhf1 {[%clk 0:02:38]} 14... Rb8 {[%clk 0:02:36.7]} 15. Ne4
{[%clk 0:02:37.3]} 15... Nb6 {[%clk 0:02:29.2]} 16. Bb3 {[%clk 0:02:37.3]} 16...
a5 {[%clk 0:02:19.1]} 17. Bg5 {[%clk 0:02:37.1]} 17... f6 {[%clk 0:02:18.7]} 18.
Bh4 {[%clk 0:02:27.7]} 18... a4 {[%clk 0:02:14]} 19. Bc4 {[%clk 0:02:28.1]}
19... Nxc4 {[%clk 0:02:13.4]} 20. Qxc4 {[%clk 0:02:28.6]} 20... Bd7 {[%clk
0:02:12.5]} 21. Nc5 {[%clk 0:02:18.7]} 21... Bxc5 {[%clk 0:01:54.5]} 22. Qxc5
{[%clk 0:02:18.5]} 22... Qd6 {[%clk 0:01:47.6]} 23. Bg3 {[%clk 0:02:18.2]} 23...
Qd5 {[%clk 0:01:38.5]} 24. Qxd5 {[%clk 0:02:02.4]} 24... cxd5 {[%clk 0:01:38.5]}
25. Bxc7 {[%clk 0:02:01.1]} 25... Rb7 {[%clk 0:01:37.1]} 26. Bd6 {[%clk
0:02:01.7]} 26... Rc8 {[%clk 0:01:36.9]} 27. Rf3 {[%clk 0:01:58.7]} 27... Be8
{[%clk 0:01:35.6]} 28. h3 {[%clk 0:01:57.9]} 28... Bg6 {[%clk 0:01:36.3]} 29.
Rd2 {[%clk 0:01:57.6]} 29... Rc6 {[%clk 0:01:36.1]} 30. Ba3 {[%clk 0:01:57.6]}
30... Rbc7 {[%clk 0:01:35.9]} 31. Rff2 {[%clk 0:01:56.7]} 31... Rb7 {[%clk
0:01:28]} 32. Kc1 {[%clk 0:01:57.1]} 32... Rbc7 {[%clk 0:01:25]} 33. c3 {[%clk
0:01:57.4]} 33... Rd7 {[%clk 0:01:21.3]} 34. Rde2 {[%clk 0:01:57.3]} 34... Kf7
{[%clk 0:01:14.9]} 35. Kd2 {[%clk 0:01:57.4]} 35... Bb1 {[%clk 0:01:14.1]} 36.
Bc5 {[%clk 0:01:48]} 36... Bxa2 {[%clk 0:01:14.1]} 37. g4 {[%clk 0:01:47]} 37...
Bc4 {[%clk 0:01:14.3]} 38. Re1 {[%clk 0:01:47.2]} 38... Rb7 {[%clk 0:01:14.5]}
39. Ke3 {[%clk 0:01:43.6]} 39... e5 {[%clk 0:01:07.7]} 40. Ra1 {[%clk
0:01:42.8]} 40... Bb3 {[%clk 0:01:05.7]} 41. Bb4 {[%clk 0:01:43.2]} 41... e4
{[%clk 0:01:05]} 42. Ba3 {[%clk 0:01:39.9]} 42... Ke6 {[%clk 0:01:02]} 43. Rf5
{[%clk 0:01:39]} 43... g6 {[%clk 0:00:59.9]} 44. Rf4 {[%clk 0:01:39.6]} 44...
Kf7 {[%clk 0:00:55.4]} 45. Raf1 {[%clk 0:01:39.3]} 45... Kg7 {[%clk 0:00:55.1]}
46. h4 {[%clk 0:01:37.8]} 46... Rf7 {[%clk 0:00:49.8]} 1/2-1/2

[Event "*** Titled Tuesday Blitz"]
[Site "Chess.com"]
[Date "2018.07.03"]
[Round "3"]
[White "dinesh501"]
[Black "Rickstereo"]
[Result "1-0"]
[WhiteElo "1980"]
[BlackElo "2166"]
[TimeControl "180+2"]
[EndTime "13:34:58 PDT"]
[Termination "dinesh501 won by resignation"]

1. e4 {[%clk 0:03:01.9]} 1... e6 {[%clk 0:02:59.8]} 2. d4 {[%clk 0:03:01.5]}
2... d5 {[%clk 0:02:59.9]} 3. Nc3 {[%clk 0:02:59.4]} 3... Nf6 {[%clk 0:02:56.8]}
4. e5 {[%clk 0:02:59.1]} 4... Nfd7 {[%clk 0:02:56.9]} 5. Qg4 {[%clk 0:03:00.1]}
5... c5 {[%clk 0:02:54.5]} 6. dxc5 {[%clk 0:02:59.1]} 6... Nxe5 {[%clk
0:02:48.7]} 7. Qg3 {[%clk 0:02:59.5]} 7... Nbc6 {[%clk 0:02:20.1]} 8. Nb5 {[%clk
0:02:45]} 8... Bxc5 {[%clk 0:01:56.8]} 9. Bf4 {[%clk 0:02:31.5]} 9... Qa5+
{[%clk 0:01:56.7]} 10. c3 {[%clk 0:02:29.2]} 10... a6 {[%clk 0:01:00.8]} 11.
Bxe5 {[%clk 0:02:25.3]} 11... axb5 {[%clk 0:01:01.1]} 12. Qxg7 {[%clk
0:02:22.1]} 12... Rf8 {[%clk 0:00:56.9]} 13. Nf3 {[%clk 0:02:21.6]} 13... b4
{[%clk 0:00:50.3]} 14. Bd3 {[%clk 0:02:18]} 14... Bd7 {[%clk 0:00:42.6]} 15. O-O
{[%clk 0:02:15.3]} 15... O-O-O {[%clk 0:00:29.8]} 16. a3 {[%clk 0:02:13.6]}
16... b3 {[%clk 0:00:26.7]} 17. Nd4 {[%clk 0:02:11]} 17... Rg8 {[%clk
0:00:22.3]} 18. Qf6 {[%clk 0:01:41.9]} 18... Nxe5 {[%clk 0:00:13.5]} 19. Qxe5
{[%clk 0:01:40.8]} 19... Qb6 {[%clk 0:00:14.4]} 20. Bxh7 {[%clk 0:01:36.9]}
20... Rg4 {[%clk 0:00:13.8]} 21. h3 {[%clk 0:01:33.2]} 21... Rh4 {[%clk
0:00:09.8]} 22. Bd3 {[%clk 0:01:29.9]} 22... Rg8 {[%clk 0:00:10.1]} 23. Kh1
{[%clk 0:01:25.2]} 23... Bd6 {[%clk 0:00:09.6]} 24. Qe3 {[%clk 0:01:21.4]} 24...
Bb8 {[%clk 0:00:09.5]} 25. Nf5 {[%clk 0:01:12.8]} 25... exf5 {[%clk 0:00:08.5]}
26. Qxb6 {[%clk 0:01:11.8]} 1-0

[Event "*** Titled Tuesday Blitz"]
[Site "Chess.com"]
[Date "2018.07.03"]
[Round "3"]
[White "moro182"]
[Black "FairChess_on_YouTube"]
[Result "1-0"]
[WhiteElo "2620"]
[BlackElo "2915"]
[TimeControl "180+2"]
[EndTime "13:35:00 PDT"]
[Termination "moro182 won by resignation"]

1. d4 {[%clk 0:02:50.4]} 1... d5 {[%clk 0:02:58.7]} 2. Bf4 {[%clk 0:02:51.2]}
2... Nf6 {[%clk 0:02:55.7]} 3. e3 {[%clk 0:02:51.9]} 3... g6 {[%clk 0:02:56.9]}
4. Nc3 {[%clk 0:02:49.8]} 4... Bg7 {[%clk 0:02:57.3]} 5. Nb5 {[%clk 0:02:50.6]}
5... Na6 {[%clk 0:02:55.9]} 6. h3 {[%clk 0:02:51.7]} 6... c6 {[%clk 0:02:45.5]}
7. Nc3 {[%clk 0:02:51.7]} 7... Qa5 {[%clk 0:02:37.7]} 8. a3 {[%clk 0:02:36.4]}
8... Ne4 {[%clk 0:02:36.3]} 9. Ne2 {[%clk 0:02:36.6]} 9... c5 {[%clk 0:02:14.7]}
10. f3 {[%clk 0:02:29]} 10... Nxc3 {[%clk 0:02:08.3]} 11. Nxc3 {[%clk
0:02:28.1]} 11... O-O {[%clk 0:02:08]} 12. Be2 {[%clk 0:02:20.9]} 12... Rd8
{[%clk 0:01:44.5]} 13. Qd2 {[%clk 0:02:15.9]} 13... Nc7 {[%clk 0:01:26.5]} 14.
dxc5 {[%clk 0:01:29.2]} 14... e5 {[%clk 0:01:23.8]} 15. b4 {[%clk 0:01:15.8]}
15... exf4 {[%clk 0:01:24.9]} 16. bxa5 {[%clk 0:01:15.7]} 16... fxe3 {[%clk
0:01:25.9]} 17. Qxe3 {[%clk 0:01:15.3]} 17... d4 {[%clk 0:01:27.2]} 18. Qd2
{[%clk 0:01:13.2]} 18... Bf5 {[%clk 0:01:26.5]} 19. Ne4 {[%clk 0:01:09.5]} 19...
d3 {[%clk 0:01:25.4]} 20. Rd1 {[%clk 0:01:03.8]} 20... Nb5 {[%clk 0:01:08.4]}
21. O-O {[%clk 0:00:31.8]} 21... Bxe4 {[%clk 0:00:57.6]} 22. fxe4 {[%clk
0:00:31.6]} 22... Bd4+ {[%clk 0:00:58.1]} 23. Kh1 {[%clk 0:00:31.8]} 23... dxe2
{[%clk 0:00:57.7]} 24. Qxe2 {[%clk 0:00:33.7]} 24... Nc3 {[%clk 0:00:57.8]} 25.
Qc4 {[%clk 0:00:33]} 25... Nxd1 {[%clk 0:00:54.3]} 26. Qxf7+ {[%clk 0:00:26.5]}
26... Kh8 {[%clk 0:00:55.5]} 27. Rxd1 {[%clk 0:00:27.7]} 27... Be5 {[%clk
0:00:56.9]} 28. Rxd8+ {[%clk 0:00:24.4]} 28... Rxd8 {[%clk 0:00:58.8]} 29. g4
{[%clk 0:00:25.9]} 29... Rc8 {[%clk 0:00:56.3]} 30. Qe6 {[%clk 0:00:21.6]} 30...
Rxc5 {[%clk 0:00:56.6]} 31. Qe8+ {[%clk 0:00:22.6]} 1-0

[Event "*** Titled Tuesday Blitz"]
[Site "Chess.com"]
[Date "2018.07.03"]
[Round "3"]
[White "Caterpiller35"]
[Black "IamSchrodingersCat"]
[Result "1-0"]
[WhiteElo "2289"]
[BlackElo "2390"]
[TimeControl "180+2"]
[EndTime "13:35:00 PDT"]
[Termination "Caterpiller35 won on time"]

1. d4 {[%clk 0:03:01.9]} 1... Nf6 {[%clk 0:03:00.4]} 2. Bf4 {[%clk 0:03:02.4]}
2... e6 {[%clk 0:02:55.4]} 3. e3 {[%clk 0:03:00.3]} 3... Bd6 {[%clk 0:02:55.9]}
4. Bg3 {[%clk 0:02:56.9]} 4... Bxg3 {[%clk 0:02:47.3]} 5. hxg3 {[%clk
0:02:58.8]} 5... b6 {[%clk 0:02:46.3]} 6. Bd3 {[%clk 0:02:59.4]} 6... Bb7 {[%clk
0:02:46.5]} 7. Nf3 {[%clk 0:02:58.8]} 7... d6 {[%clk 0:02:44.4]} 8. c4 {[%clk
0:02:59.6]} 8... Nbd7 {[%clk 0:02:36.7]} 9. Nc3 {[%clk 0:02:59.8]} 9... h6
{[%clk 0:02:35.2]} 10. Qc2 {[%clk 0:02:57.2]} 10... e5 {[%clk 0:02:26.8]} 11.
O-O-O {[%clk 0:02:42.4]} 11... Qe7 {[%clk 0:02:21.3]} 12. Ne4 {[%clk 0:02:22]}
12... O-O-O {[%clk 0:02:09.7]} 13. d5 {[%clk 0:02:14.3]} 13... g6 {[%clk
0:02:04.4]} 14. Nxf6 {[%clk 0:02:05.4]} 14... Nxf6 {[%clk 0:01:57.8]} 15. e4
{[%clk 0:02:02.2]} 15... Ng4 {[%clk 0:01:34.8]} 16. b4 {[%clk 0:01:58.7]} 16...
h5 {[%clk 0:01:26.5]} 17. Kb1 {[%clk 0:01:56.3]} 17... Kb8 {[%clk 0:01:25.8]}
18. Rc1 {[%clk 0:01:56.7]} 18... Rc8 {[%clk 0:01:11.9]} 19. Ka1 {[%clk
0:01:51.2]} 19... Ka8 {[%clk 0:01:08.1]} 20. Nh2 {[%clk 0:01:43.2]} 20... Nxh2
{[%clk 0:00:51.9]} 21. Rxh2 {[%clk 0:01:44]} 21... c6 {[%clk 0:00:53.5]} 22.
dxc6 {[%clk 0:01:41.6]} 22... Rxc6 {[%clk 0:00:50.1]} 23. Rhh1 {[%clk 0:01:41]}
23... Rhc8 {[%clk 0:00:49]} 24. Qb2 {[%clk 0:01:35.2]} 24... R6c7 {[%clk
0:00:47.7]} 25. Rhd1 {[%clk 0:01:34]} 25... Qe6 {[%clk 0:00:40.7]} 26. Re1
{[%clk 0:01:25.6]} 26... Ba6 {[%clk 0:00:29.7]} 27. b5 {[%clk 0:01:18]} 27...
Bb7 {[%clk 0:00:30]} 28. Rcd1 {[%clk 0:01:16]} 1-0

[Event "*** Titled Tuesday Blitz"]
[Site "Chess.com"]
[Date "2018.07.03"]
[Round "3"]
[White "nitpicker"]
[Black "ama18"]
[Result "0-1"]
[WhiteElo "2108"]
[BlackElo "2274"]
[TimeControl "180+2"]
[EndTime "13:35:11 PDT"]
[Termination "ama18 won on time"]

1. d4 {[%clk 0:03:01.9]} 1... Nf6 {[%clk 0:02:57.7]} 2. Nf3 {[%clk 0:03:01.1]}
2... g6 {[%clk 0:02:52.2]} 3. b4 {[%clk 0:03:01.7]} 3... Bg7 {[%clk 0:02:50.3]}
4. Nbd2 {[%clk 0:03:00.9]} 4... d5 {[%clk 0:02:51.4]} 5. e3 {[%clk 0:02:59.9]}
5... O-O {[%clk 0:02:51.9]} 6. c4 {[%clk 0:02:56.8]} 6... c6 {[%clk 0:02:52]} 7.
Bb2 {[%clk 0:02:52.8]} 7... Nbd7 {[%clk 0:02:40.5]} 8. a4 {[%clk 0:02:40.9]}
8... a5 {[%clk 0:02:40]} 9. b5 {[%clk 0:02:41.2]} 9... c5 {[%clk 0:02:37.9]} 10.
Rc1 {[%clk 0:02:31.4]} 10... cxd4 {[%clk 0:02:38.2]} 11. Bxd4 {[%clk 0:02:27.5]}
11... Re8 {[%clk 0:02:23.9]} 12. cxd5 {[%clk 0:02:05.2]} 12... Nxd5 {[%clk
0:02:23.8]} 13. Bxg7 {[%clk 0:02:06]} 13... Kxg7 {[%clk 0:02:25.7]} 14. Bc4
{[%clk 0:01:59.2]} 14... N7b6 {[%clk 0:02:23.9]} 15. Bb3 {[%clk 0:01:53.9]}
15... Nb4 {[%clk 0:02:24.2]} 16. O-O {[%clk 0:01:40.7]} 16... Bg4 {[%clk
0:02:14]} 17. h3 {[%clk 0:01:30.3]} 17... Bxf3 {[%clk 0:02:09.1]} 18. Nxf3
{[%clk 0:01:32.2]} 18... Rc8 {[%clk 0:02:06.2]} 19. Qd4+ {[%clk 0:01:25.6]}
19... Qxd4 {[%clk 0:01:46.5]} 20. Nxd4 {[%clk 0:01:27.5]} 20... e5 {[%clk
0:01:46.2]} 21. Nf3 {[%clk 0:01:14.5]} 21... Nd3 {[%clk 0:01:43.6]} 22. Rb1
{[%clk 0:00:54.5]} 22... Rc3 {[%clk 0:01:26.4]} 23. Rfd1 {[%clk 0:00:40.8]}
23... Nc5 {[%clk 0:01:25.6]} 24. Ba2 {[%clk 0:00:24.3]} 24... Ra3 {[%clk
0:01:07.3]} 25. Bd5 {[%clk 0:00:19.6]} 25... Nbxa4 {[%clk 0:01:02.9]} 26. Ng5
{[%clk 0:00:19.3]} 26... Nc3 {[%clk 0:00:59.5]} 27. Rbc1 {[%clk 0:00:12.5]}
27... f6 {[%clk 0:00:52.9]} 0-1

[Event "*** Titled Tuesday Blitz"]
[Site "Chess.com"]
[Date "2018.07.03"]
[Round "3"]
[White "kleinebeer98"]
[Black "TenisMaster"]
[Result "0-1"]
[WhiteElo "2459"]
[BlackElo "2751"]
[TimeControl "180+2"]
[EndTime "13:35:17 PDT"]
[Termination "TenisMaster won by resignation"]

1. e4 {[%clk 0:03:01.9]} 1... e5 {[%clk 0:02:59.6]} 2. Nf3 {[%clk 0:03:00.6]}
2... Nc6 {[%clk 0:03:00.4]} 3. Nc3 {[%clk 0:03:00.8]} 3... Nf6 {[%clk
0:03:00.3]} 4. a3 {[%clk 0:03:02.2]} 4... d5 {[%clk 0:02:59]} 5. Bb5 {[%clk
0:03:03.1]} 5... d4 {[%clk 0:02:59]} 6. Ne2 {[%clk 0:03:04]} 6... Bd6 {[%clk
0:02:59.3]} 7. Bxc6+ {[%clk 0:03:01.4]} 7... bxc6 {[%clk 0:02:59.5]} 8. d3
{[%clk 0:03:03.3]} 8... h5 {[%clk 0:02:17.8]} 9. Bg5 {[%clk 0:03:00.4]} 9... Bg4
{[%clk 0:02:18.2]} 10. Nc1 {[%clk 0:02:46.1]} 10... Rb8 {[%clk 0:02:11.5]} 11.
Nb3 {[%clk 0:02:41.8]} 11... c5 {[%clk 0:02:00.5]} 12. Rb1 {[%clk 0:02:25.4]}
12... c4 {[%clk 0:01:42.8]} 13. dxc4 {[%clk 0:02:02.1]} 13... c5 {[%clk
0:01:43.7]} 14. h3 {[%clk 0:01:59.6]} 14... Be6 {[%clk 0:01:43.3]} 15. Nbd2
{[%clk 0:01:07.6]} 15... Rb6 {[%clk 0:01:41.1]} 16. b3 {[%clk 0:01:02.6]} 16...
Bd7 {[%clk 0:01:24.4]} 17. O-O {[%clk 0:00:51.7]} 17... a5 {[%clk 0:01:22.6]}
18. a4 {[%clk 0:00:49.8]} 18... Bc7 {[%clk 0:01:22.8]} 19. Ne1 {[%clk
0:00:50.5]} 19... Qc8 {[%clk 0:01:20]} 20. Nd3 {[%clk 0:00:50.2]} 20... Nh7
{[%clk 0:01:20.2]} 21. Bh4 {[%clk 0:00:41.8]} 21... Rg6 {[%clk 0:01:12.9]} 22.
Kh2 {[%clk 0:00:40.1]} 22... Bd6 {[%clk 0:01:06.3]} 23. Nf3 {[%clk 0:00:39.3]}
23... f6 {[%clk 0:01:04.1]} 24. Qd2 {[%clk 0:00:34.9]} 24... Qc7 {[%clk
0:01:00.9]} 25. Bg3 {[%clk 0:00:30.8]} 25... Rh6 {[%clk 0:00:59.9]} 26. c3
{[%clk 0:00:23.4]} 26... dxc3 {[%clk 0:00:54.6]} 27. Qxc3 {[%clk 0:00:22.1]}
27... g5 {[%clk 0:00:56.5]} 28. h4 {[%clk 0:00:17.9]} 28... Rg6 {[%clk
0:00:55.4]} 29. Rbd1 {[%clk 0:00:17.5]} 29... Rhg8 {[%clk 0:00:54.9]} 30. hxg5
{[%clk 0:00:16.3]} 30... Nxg5 {[%clk 0:00:54.4]} 31. Nxg5 {[%clk 0:00:17.5]}
31... Rxg5 {[%clk 0:00:54.7]} 32. Rg1 {[%clk 0:00:16.3]} 32... Rg4 {[%clk
0:00:55.1]} 33. Ne1 {[%clk 0:00:15.5]} 33... h4 {[%clk 0:00:54.8]} 0-1

[Event "*** Titled Tuesday Blitz"]
[Site "Chess.com"]
[Date "2018.07.03"]
[Round "3"]
[White "lupta_robin"]
[Black "evgenysharapov"]
[Result "0-1"]
[WhiteElo "2554"]
[BlackElo "2405"]
[TimeControl "180+2"]
[EndTime "13:35:29 PDT"]
[Termination "evgenysharapov won by resignation"]

1. e4 {[%clk 0:03:01.9]} 1... c5 {[%clk 0:03:00.2]} 2. Nf3 {[%clk 0:03:02.8]}
2... d6 {[%clk 0:03:00.8]} 3. d4 {[%clk 0:03:03.6]} 3... cxd4 {[%clk 0:03:01.7]}
4. Nxd4 {[%clk 0:03:04.9]} 4... Nf6 {[%clk 0:03:02.7]} 5. Nc3 {[%clk 0:03:05.8]}
5... Nc6 {[%clk 0:03:03.4]} 6. Bg5 {[%clk 0:03:06.8]} 6... Qb6 {[%clk
0:03:03.6]} 7. Nb3 {[%clk 0:03:04.6]} 7... e6 {[%clk 0:03:04]} 8. Qd2 {[%clk
0:03:03.2]} 8... Be7 {[%clk 0:03:04.4]} 9. O-O-O {[%clk 0:03:03.2]} 9... O-O
{[%clk 0:03:04.8]} 10. f4 {[%clk 0:03:00.5]} 10... Rd8 {[%clk 0:03:01.5]} 11. f5
{[%clk 0:02:40.6]} 11... a5 {[%clk 0:02:55.7]} 12. fxe6 {[%clk 0:02:32.7]} 12...
Bxe6 {[%clk 0:02:52.3]} 13. Nd5 {[%clk 0:02:31.6]} 13... Bxd5 {[%clk 0:02:45.4]}
14. exd5 {[%clk 0:02:30.8]} 14... a4 {[%clk 0:02:38.4]} 15. Nd4 {[%clk
0:02:27.3]} 15... Ne4 {[%clk 0:02:34.4]} 16. Bxe7 {[%clk 0:01:56.7]} 16... Nxd2
{[%clk 0:02:32]} 17. Bxd8 {[%clk 0:01:55.2]} 17... Rxd8 {[%clk 0:02:22.6]} 18.
dxc6 {[%clk 0:01:41.5]} 18... Nxf1 {[%clk 0:02:09.9]} 19. c7 {[%clk 0:01:34.3]}
19... Qxc7 {[%clk 0:02:04.7]} 20. Rhxf1 {[%clk 0:01:35.3]} 20... a3 {[%clk
0:02:03.4]} 21. Rf3 {[%clk 0:01:34.7]} 21... axb2+ {[%clk 0:02:03.5]} 22. Kxb2
{[%clk 0:01:34.6]} 22... Ra8 {[%clk 0:02:00.2]} 23. Rb3 {[%clk 0:01:28.3]} 23...
Qc5 {[%clk 0:01:51.5]} 24. a3 {[%clk 0:01:24.1]} 24... g6 {[%clk 0:01:51.4]} 25.
g3 {[%clk 0:01:18.4]} 25... Ra6 {[%clk 0:01:45.3]} 26. Rdd3 {[%clk 0:01:11.8]}
26... Rb6 {[%clk 0:01:45]} 27. Rxb6 {[%clk 0:01:12]} 27... Qxb6+ {[%clk
0:01:45.2]} 28. Nb3 {[%clk 0:01:11.2]} 28... Qf2 {[%clk 0:01:44.5]} 29. Rd2
{[%clk 0:01:11.5]} 29... Qf6+ {[%clk 0:01:43.2]} 30. Nd4 {[%clk 0:01:09.1]}
30... Qe5 {[%clk 0:01:43.5]} 31. Kb3 {[%clk 0:01:07.2]} 31... h5 {[%clk
0:01:41.6]} 32. Rd3 {[%clk 0:01:07.4]} 32... h4 {[%clk 0:01:40.4]} 33. a4 {[%clk
0:01:07.3]} 33... h3 {[%clk 0:01:36.3]} 34. Nf3 {[%clk 0:01:06]} 34... Qe2
{[%clk 0:01:33.5]} 35. Kc3 {[%clk 0:00:58.7]} 35... f6 {[%clk 0:01:18]} 36. g4
{[%clk 0:00:59.7]} 36... f5 {[%clk 0:01:14.8]} 37. gxf5 {[%clk 0:01:00]} 37...
gxf5 {[%clk 0:01:15.3]} 38. Kb3 {[%clk 0:00:59.6]} 38... f4 {[%clk 0:01:15.7]}
39. Kc3 {[%clk 0:00:59.8]} 39... Kg7 {[%clk 0:01:12.5]} 40. Ng5 {[%clk
0:00:53.5]} 40... Qe5+ {[%clk 0:01:00.6]} 0-1

[Event "*** Titled Tuesday Blitz"]
[Site "Chess.com"]
[Date "2018.07.03"]
[Round "3"]
[White "Bigfish1995"]
[Black "chessking2151"]
[Result "1-0"]
[WhiteElo "2885"]
[BlackElo "2452"]
[TimeControl "180+2"]
[EndTime "13:35:40 PDT"]
[Termination "Bigfish1995 won by resignation"]

1. d4 {[%clk 0:03:01.9]} 1... Nf6 {[%clk 0:03:00.6]} 2. c4 {[%clk 0:03:02.4]}
2... e6 {[%clk 0:03:01.5]} 3. Nf3 {[%clk 0:03:03.1]} 3... b6 {[%clk 0:03:02.4]}
4. g3 {[%clk 0:03:03.5]} 4... Bb7 {[%clk 0:03:03.2]} 5. Bg2 {[%clk 0:03:04.5]}
5... Bb4+ {[%clk 0:03:04.7]} 6. Nbd2 {[%clk 0:03:03.4]} 6... O-O {[%clk
0:03:03.3]} 7. O-O {[%clk 0:03:04.9]} 7... d5 {[%clk 0:03:03.1]} 8. a3 {[%clk
0:03:05.5]} 8... Bxd2 {[%clk 0:02:11.7]} 9. Nxd2 {[%clk 0:03:02.6]} 9... Nc6
{[%clk 0:02:12.1]} 10. e3 {[%clk 0:03:02.2]} 10... e5 {[%clk 0:02:10.5]} 11.
cxd5 {[%clk 0:02:57.2]} 11... Nxd5 {[%clk 0:02:09.8]} 12. e4 {[%clk 0:02:31]}
12... Nf6 {[%clk 0:01:56.4]} 13. d5 {[%clk 0:02:32.7]} 13... Nd4 {[%clk
0:01:57.1]} 14. Nc4 {[%clk 0:02:32.2]} 14... Ba6 {[%clk 0:01:37.6]} 15. Nxe5
{[%clk 0:02:27.9]} 15... Ne2+ {[%clk 0:01:37.5]} 16. Kh1 {[%clk 0:02:27.9]}
16... Nxc1 {[%clk 0:01:37.1]} 17. Re1 {[%clk 0:02:20.9]} 17... Ne2 {[%clk
0:01:00.8]} 18. Nc6 {[%clk 0:02:17.8]} 18... Qe8 {[%clk 0:00:19.2]} 19. e5
{[%clk 0:02:08.3]} 19... Ng4 {[%clk 0:00:19.4]} 20. Rxe2 {[%clk 0:02:09.3]}
20... Bxe2 {[%clk 0:00:19.8]} 21. Qxe2 {[%clk 0:02:11.2]} 21... Nh6 {[%clk
0:00:21.6]} 22. Re1 {[%clk 0:02:02.7]} 22... Kh8 {[%clk 0:00:22.4]} 23. g4
{[%clk 0:02:01.4]} 23... Qd7 {[%clk 0:00:18.8]} 24. h3 {[%clk 0:02:00.4]} 24...
Rae8 {[%clk 0:00:18.3]} 25. f4 {[%clk 0:02:01.1]} 25... Ng8 {[%clk 0:00:07.5]}
26. Nxa7 {[%clk 0:01:33]} 26... Ne7 {[%clk 0:00:08]} 27. Qb5 {[%clk 0:01:33.7]}
27... Qd8 {[%clk 0:00:06.7]} 28. f5 {[%clk 0:01:32.9]} 28... f6 {[%clk
0:00:05.3]} 29. e6 {[%clk 0:01:22]} 29... Nc8 {[%clk 0:00:04.2]} 30. Nxc8 {[%clk
0:01:12.9]} 30... Qxc8 {[%clk 0:00:06.1]} 31. Qc6 {[%clk 0:01:10.4]} 31... Qd8
{[%clk 0:00:06.5]} 32. b4 {[%clk 0:01:05.3]} 32... Re7 {[%clk 0:00:07.6]} 33. a4
{[%clk 0:01:06.4]} 33... Qc8 {[%clk 0:00:06.7]} 34. a5 {[%clk 0:01:07.4]} 34...
bxa5 {[%clk 0:00:07.1]} 35. bxa5 {[%clk 0:01:08.9]} 35... Rd8 {[%clk 0:00:08.9]}
36. a6 {[%clk 0:01:04.4]} 36... Rd6 {[%clk 0:00:08.7]} 37. Qb7 {[%clk
0:01:05.4]} 37... Qxb7 {[%clk 0:00:08]} 38. axb7 {[%clk 0:01:05.9]} 38... Rb6
{[%clk 0:00:09.6]} 39. Ra1 {[%clk 0:01:05.6]} 39... h5 {[%clk 0:00:07.3]} 40.
Ra8+ {[%clk 0:01:06.1]} 1-0